bitfinex-derivatives/quotes_BTCF0:USTF0_20240829
["timestamp","ask_amount","ask_price","bid_price","bid_amount"]
[1724950170404,4.30575905,60301.0,60300.0,0.109]
[1724950171701,4.22287105,60301.0,60300.0,0.109]
[1724950172614,4.214688,60301.0,60300.0,0.109]
[1724950173307,0.444688,60301.0,60300.0,0.109]
[1724950173512,0.734688,60301.0,60300.0,0.109]
[1724950174214,0.817576,60301.0,60300.0,0.109]
[1724950174396,1.997984,60301.0,60300.0,0.109]
[1724950175018,5.167984,60301.0,60300.0,0.109]
[1724950175510,1.997984,60301.0,60300.0,0.109]
[1724950175908,5.767984,60301.0,60300.0,0.109]
[1724950177303,5.767984,60301.0,60274.0,0.082924]
[1724950177304,0.0829,60292.0,60274.0,0.082924]
[1724950177505,0.3608,60276.0,60275.0,0.082923]
[1724950177697,0.31931482,60276.0,60275.0,0.580643]
[1724950177898,0.31631482,60276.0,60275.0,1.346491]
[1724950178709,0.30660936,60276.0,60275.0,1.346491]
[1724950178897,0.00024868,60282.0,60281.0,0.16583]
[1724950179304,0.00024868,60282.0,60281.0,1.26351]
[1724950179603,0.00024868,60282.0,60281.0,1.180595]
[1724950179803,0.00024868,60282.0,60281.0,1.26351]
[1724950180004,0.00024868,60282.0,60281.0,1.180595]
[1724950180415,0.00024868,60282.0,60281.0,1.26351]
[1724950180613,0.00024868,60282.0,60281.0,1.180595]
[1724950181516,0.00124868,60282.0,60281.0,0.082915]
[1724950183413,0.08416268,60282.0,60281.0,0.082915]
[1724950184116,0.00124868,60282.0,60281.0,0.082915]
[1724950184606,0.00124868,60282.0,60281.0,0.16583]
[1724950184913,0.00124868,60282.0,60281.0,0.66351]
[1724950185213,0.00124868,60282.0,60281.0,0.67457297]
[1724950185423,0.00124868,60282.0,60281.0,1.27457297]
[1724950185914,0.00124868,60282.0,60281.0,0.67457297]
[1724950186316,0.10021,60295.0,60283.0,0.082913]
[1724950186514,0.3608,60304.0,60294.0,0.29]
[1724950186821,0.3608,60304.0,60301.0,0.3608]
[1724950186822,0.29,60304.0,60301.0,0.3608]
[1724950187008,0.29,60304.0,60302.0,0.082886]
[1724950187203,0.372884,60304.0,60301.0,0.3608]
[1724950187517,0.082892,60298.0,60296.0,0.00024868]
[1724950187721,0.082892,60298.0,60296.0,0.08314268]
[1724950187903,0.082886,60303.0,60296.0,0.08314268]
[1724950188218,0.372884,60304.0,60296.0,0.08314268]
[1724950188219,0.372884,60304.0,60296.0,0.00024868]
[1724950188719,0.38394697,60304.0,60300.0,0.082889]
[1724950189807,0.09394697,60304.0,60300.0,0.082889]
[1724950190213,0.09394697,60304.0,60298.0,0.3608]
[1724950190214,0.01106297,60304.0,60302.0,0.082886]
[1724950190513,3.853878,60308.0,60298.0,0.3608]
[1724950190718,0.00024868,60309.0,60298.0,0.3608]
[1724950191018,0.00024868,60309.0,60306.0,0.44368]
[1724950191209,0.00024868,60309.0,60306.0,0.3608]
[1724950191615,0.00024868,60309.0,60308.0,0.082878]
[1724950191920,0.0109651,60309.0,60308.0,0.082878]
[1724950192115,0.00024868,60309.0,60308.0,0.082878]
[1724950192616,0.00024868,60309.0,60296.0,0.36104868]
[1724950192617,0.08288,60307.0,60296.0,0.36104868]
[1724950192820,0.082893,60297.0,60296.0,0.00024868]
[1724950193117,3.77,60297.0,60296.0,0.00024868]
[1724950193518,3.852893,60297.0,60296.0,0.00024868]
[1724950194111,3.853893,60297.0,60296.0,0.00024868]
[1724950197324,3.936786,60297.0,60296.0,0.00024868]
[1724950198316,3.998686,60297.0,60296.0,0.00024868]
[1724950199812,4.081579,60297.0,60296.0,0.00024868]
[1724950200414,4.764472,60297.0,60296.0,6.8e-07]
[1724950200816,4.164472,60297.0,60296.0,6.8e-07]
[1724950202629,4.081579,60297.0,60296.0,6.8e-07]
[1724950203515,3.998686,60297.0,60296.0,6.8e-07]
[1724950204224,4.081579,60297.0,60296.0,6.8e-07]
[1724950204533,4.081579,60297.0,60284.0,0.3608]
[1724950204534,0.16582,60285.0,60284.0,0.3608]
[1724950204920,0.3608,60290.0,60286.0,0.082908]
[1724950205224,0.3608,60290.0,60284.0,0.44371]
[1724950205225,0.082909,60286.0,60284.0,0.44371]
[1724950205525,0.00024868,60291.0,60284.0,0.3608]
[1724950205730,0.00024868,60291.0,60290.0,0.082903]
[1724950206135,0.00024868,60291.0,60286.0,0.062]
[1724950206427,0.082905,60290.0,60289.0,0.082904]
[1724950206620,0.00024868,60291.0,60286.0,0.144908]
[1724950206825,0.082906,60288.0,60287.0,0.082907]
[1724950207127,0.00124868,60291.0,60288.0,0.082905]
[1724950207321,0.082904,60289.0,60288.0,0.082905]
[1724950207937,0.08291,60285.0,60284.0,0.443711]
[1724950208122,0.082903,60290.0,60285.0,0.082908]
[1724950209125,0.09675554,60290.0,60285.0,0.082908]
[1724950209527,0.01385254,60290.0,60289.0,0.3608]
[1724950209730,0.00024868,60291.0,60289.0,0.3608]
[1724950210124,0.082903,60290.0,60289.0,0.3608]
[1724950210622,0.165806,60290.0,60289.0,0.3608]
[1724950210821,0.01606812,60291.0,60284.0,0.3608]
[1724950211022,0.165834,60280.0,60279.0,1e-08]
[1724950211226,0.40141301,60280.0,60273.0,0.00811719]
[1724950211527,0.3608,60274.0,60270.0,0.035]
[1724950211725,0.3608,60274.0,60273.0,0.082926]
[1724950212027,0.3608,60274.0,60271.0,0.082929]
[1724950212331,3.77,60273.0,60272.0,0.082928]
[1724950213425,0.3608,60274.0,60272.0,0.082928]
[1724950213633,0.001,60273.0,60270.0,0.04313379]
[1724950213833,0.082928,60272.0,60270.0,0.04313379]
[1724950214132,0.082929,60271.0,60270.0,0.04313379]
[1724950214522,0.3618,60273.0,60270.0,0.04313379]
[1724950214722,0.444726,60273.0,60270.0,0.04313379]
[1724950215319,0.082928,60272.0,60270.0,0.04313379]
[1724950215519,0.3618,60273.0,60270.0,0.04313379]
[1724950215926,0.3608,60273.0,60270.0,0.04313379]
[1724950216127,0.3618,60273.0,60270.0,0.04313379]
[1724950216636,0.3618,60273.0,60272.0,0.082928]
[1724950217829,0.443726,60273.0,60271.0,0.1233]
[1724950218036,0.444726,60273.0,60271.0,0.1233]
[1724950218529,0.082928,60272.0,60271.0,0.1233]
[1724950219927,0.001,60273.0,60272.0,0.082928]
[1724950220129,0.082925,60274.0,60272.0,0.082928]
[1724950220834,0.082926,60273.0,60272.0,0.082928]
[1724950221034,0.065,60279.0,60271.0,0.1233]
[1724950221035,0.082921,60277.0,60271.0,0.1233]
[1724950221235,0.08292,60278.0,60277.0,0.08292]
[1724950222337,0.082915,60281.0,60279.0,0.082918]
[1724950222534,0.08316568,60280.0,60279.0,0.082918]
[1724950223443,0.00024868,60280.0,60279.0,0.082918]
[1724950223743,0.0039,60293.0,60292.0,0.0829]
[1724950224041,0.082899,60293.0,60292.0,0.4437]
[1724950224250,0.082899,60293.0,60292.0,0.0829]
[1724950224835,0.096899,60293.0,60292.0,0.0829]
[1724950225341,0.014,60293.0,60292.0,0.09639481]
[1724950225833,0.014,60293.0,60292.0,0.0829]
[1724950226029,0.014,60293.0,60290.0,0.3608]
[1724950226234,0.082907,60288.0,60287.0,0.082906]
[1724950227040,0.082901,60292.0,60290.0,0.082902]
[1724950227438,0.00024868,60299.0,60298.0,0.082892]
[1724950228640,0.00024868,60299.0,60298.0,0.146792]
[1724950229147,0.00024868,60299.0,60298.0,0.213892]
[1724950230443,0.01424868,60299.0,60298.0,0.213892]
[1724950230640,0.01424868,60299.0,60298.0,0.711412]
[1724950230944,0.01424868,60299.0,60298.0,1.155104]
[1724950231649,0.01424868,60299.0,60298.0,1.755104]
[1724950233042,0.0705,60314.0,60298.0,1.58932]
[1724950233043,0.0039,60314.0,60298.0,1.58932]
[1724950233249,0.08286,60321.0,60313.0,0.082871]
[1724950233250,0.0039,60319.0,60313.0,0.082871]
[1724950233441,0.063,60321.0,60313.0,0.082871]
[1724950233442,0.0666,60328.0,60318.0,0.3608]
[1724950233738,0.08286,60323.0,60322.0,0.082859]
[1724950235143,0.08286,60323.0,60322.0,0.08202581]
[1724950235144,0.09686,60323.0,60322.0,0.08202581]
[1724950235647,0.014,60323.0,60322.0,0.08202581]
[1724950236350,0.05458018,60323.0,60322.0,0.08202581]
[1724950237347,0.23193747,60323.0,60322.0,0.08202581]
[1724950237655,0.05458018,60323.0,60322.0,0.08202581]
[1724950239045,0.05458018,60323.0,60320.0,0.3608]
[1724950239252,0.08286,60321.0,60320.0,0.28035371]
[1724950239442,0.12344018,60321.0,60320.0,0.28035371]
[1724950239846,0.12344018,60321.0,60316.0,0.00834531]
[1724950239847,0.082866,60317.0,60316.0,0.09121231]
[1724950240055,0.24387851,60317.0,60316.0,0.09121231]
[1724950240250,0.28441555,60317.0,60316.0,0.00834531]
[1724950240442,0.12344618,60317.0,60316.0,0.00834531]
[1724950240843,0.12344618,60317.0,60316.0,0.09121231]
[1724950240844,0.04058018,60317.0,60316.0,0.09121231]
[1724950241141,0.05086451,60320.0,60316.0,0.00024868]
[1724950241142,0.082863,60319.0,60316.0,0.00024868]
[1724950241352,0.082866,60317.0,60316.0,0.00024868]
[1724950241549,0.12344618,60317.0,60316.0,0.00024868]
[1724950241751,0.56711218,60317.0,60316.0,1e-08]
[1724950241952,0.082869,60315.0,60303.0,0.01399154]
[1724950242146,0.082869,60315.0,60300.0,0.0617]
[1724950242147,0.16093918,60308.0,60301.0,0.082887]
[1724950242352,0.16093918,60303.0,60301.0,0.082887]
[1724950242553,0.28340536,60303.0,60299.0,0.4267]
[1724950242744,0.12346618,60302.0,60299.0,0.3608]
[1724950242946,0.04058018,60301.0,60299.0,0.3608]
[1724950243551,0.082886,60302.0,60299.0,0.3608]
[1724950244950,0.081886,60302.0,60299.0,0.3608]
[1724950245159,0.3608,60305.0,60301.0,0.082888]
[1724950245360,0.3608,60305.0,60301.0,0.00834839]
[1724950245653,0.082886,60302.0,60300.0,0.082889]
[1724950245860,0.082886,60302.0,60301.0,0.00834093]
[1724950245861,0.092886,60302.0,60301.0,0.00834093]
[1724950247358,0.00024868,60307.0,60299.0,0.6508]
[1724950247565,0.012,60305.0,60304.0,0.443684]
[1724950247750,0.012,60305.0,60304.0,0.74203903]
[1724950247955,0.01369702,60314.0,60305.0,0.49748]
[1724950248158,0.01369702,60314.0,60313.0,0.082871]
[1724950248666,0.443666,60317.0,60316.0,0.082867]
[1724950250160,0.082866,60317.0,60316.0,0.443667]
[1724950250359,0.06464868,60323.0,60319.0,0.082862]
[1724950250553,0.082862,60320.0,60319.0,0.082862]
[1724950251360,0.08310668,60323.0,60322.0,0.082859]
[1724950251565,0.08910668,60323.0,60322.0,0.082859]
[1724950252075,0.08310668,60323.0,60322.0,0.082859]
[1724950252760,0.00024868,60323.0,60322.0,0.443659]
[1724950253160,0.00024868,60323.0,60322.0,0.526518]
[1724950253768,0.00624868,60323.0,60322.0,0.527518]
[1724950254064,0.00624868,60323.0,60322.0,0.444659]
[1724950255867,0.00624868,60323.0,60322.0,0.527518]
[1724950257672,0.00439856,60346.0,60345.0,0.082827]
[1724950257876,0.443606,60361.0,60345.0,0.082827]
[1724950257877,0.19602471,60367.0,60365.0,0.0828]
[1724950258168,0.10272608,60369.0,60345.0,1.5408]
[1724950258169,0.082801,60365.0,60358.0,0.082809]
[1724950258398,0.3608,60361.0,60345.0,0.3608]
[1724950258676,0.082831,60343.0,60339.0,0.3608]
[1724950258883,0.1267,60342.0,60339.0,0.3608]
[1724950259188,0.1868,60342.0,60339.0,0.3608]
[1724950260173,0.005,60346.0,60345.0,0.082827]
[1724950260372,0.00108847,60347.0,60345.0,0.082827]
[1724950260373,0.00024847,60347.0,60346.0,0.082826]
[1724950260568,0.00024847,60347.0,60345.0,0.3608]
[1724950260569,3.77,60347.0,60345.0,0.3608]
[1724950261080,3.77,60347.0,60346.0,0.082826]
[1724950261377,0.06484847,60352.0,60345.0,0.3608]
[1724950261675,0.06484847,60352.0,60350.0,0.082819]
[1724950261676,3.77,60351.0,60350.0,0.082819]
[1724950261973,3.77,60351.0,60346.0,0.082826]
[1724950262167,3.77,60351.0,60345.0,0.3618]
[1724950262373,3.77,60351.0,60339.0,0.443635]
[1724950262374,0.3608,60346.0,60339.0,0.443635]
[1724950262568,0.3608,60346.0,60342.0,0.082831]
[1724950262779,0.3608,60346.0,60339.0,0.3608]
[1724950262780,0.3608,60346.0,60343.0,0.08283]
[1724950263477,0.3598,60346.0,60343.0,0.08283]
[1724950264072,0.3618,60346.0,60343.0,0.08383]
[1724950264664,0.3598,60346.0,60343.0,0.08383]
[1724950264869,0.3608,60346.0,60344.0,0.082828]
[1724950265073,0.001,60346.0,60345.0,0.082827]
[1724950265366,3.77,60351.0,60350.0,0.082821]
[1724950265566,0.06484847,60352.0,60351.0,0.082819]
[1724950267566,0.06784847,60352.0,60351.0,0.083819]
[1724950268181,0.06784847,60352.0,60351.0,0.166638]
[1724950268182,0.003,60352.0,60351.0,0.166638]
[1724950270082,0.003,60352.0,60351.0,0.249457]
[1724950270267,0.003,60352.0,60351.0,1.346537]
[1724950270978,0.003,60352.0,60351.0,0.746537]
[1724950271181,0.003,60352.0,60351.0,1.346537]
[1724950271371,0.003,60352.0,60351.0,0.249457]
[1724950272074,4.7e-07,60355.0,60354.0,0.33126]
[1724950272284,4.7e-07,60355.0,60354.0,2.08759999]
[1724950272785,0.0646,60362.0,60361.0,0.16561]
[1724950272969,0.0646,60362.0,60361.0,0.52641]
[1724950273480,0.0646,60362.0,60361.0,1.02341]
[1724950273782,0.0646,60362.0,60361.0,0.52641]
[1724950274181,0.11347518,60368.0,60367.0,0.165594]
[1724950274379,0.11347518,60368.0,60367.0,0.526394]
[1724950274380,0.11294295,60368.0,60367.0,0.526394]
[1724950274583,0.12940129,60378.0,60368.0,0.082796]
[1724950274881,0.10584509,60377.0,60376.0,0.082785]
[1724950275074,0.082796,60368.0,60367.0,0.36168]
[1724950275374,0.11269932,60368.0,60358.0,0.082809]
[1724950275582,0.11269403,60359.0,60357.0,0.00024847]
[1724950275773,0.24289403,60358.0,60357.0,0.08305947]
[1724950275970,0.1302,60358.0,60357.0,0.08305947]
[1724950276184,0.24289403,60358.0,60357.0,0.08305947]
[1724950276376,0.1302,60358.0,60357.0,0.08305947]
[1724950276577,0.24294025,60358.0,60357.0,0.08305947]
[1724950276778,0.24294058,60358.0,60357.0,0.08305947]
[1724950277183,3.94075509,60358.0,60357.0,0.08305947]
[1724950277687,3.94175509,60358.0,60357.0,0.08405947]
[1724950279586,0.11393813,60358.0,60357.0,0.45687047]
[1724950279885,0.001,60358.0,60357.0,0.45687047]
[1724950280083,0.11394068,60358.0,60357.0,0.45687047]
[1724950280277,0.04155082,60358.0,60357.0,0.45687047]
[1724950281284,0.04155082,60358.0,60357.0,0.08405947]
[1724950281285,0.13040129,60358.0,60357.0,0.08405947]
[1724950281488,0.001,60358.0,60357.0,0.08405947]
[1724950292793,0.001,60358.0,60357.0,0.16687047]
[1724950292989,0.001,60358.0,60357.0,0.08405947]
[1724950294593,0.001,60358.0,60357.0,0.16687047]
[1724950294985,0.001,60358.0,60357.0,0.24968147]
[1724950295186,0.001,60358.0,60357.0,0.16687047]
[1724950296496,0.11436526,60358.0,60357.0,0.16687047]
[1724950297288,0.001,60358.0,60357.0,0.00124847]
[1724950297495,0.082825,60347.0,60346.0,0.443625]
[1724950297696,0.04055324,60347.0,60341.0,0.01379347]
[1724950298001,0.04055324,60347.0,60332.0,0.3608]
[1724950298002,0.3608,60343.0,60340.0,0.082834]
[1724950298298,0.3608,60343.0,60332.0,0.37465782]
[1724950298299,0.53771324,60342.0,60332.0,0.37465782]
[1724950298484,0.50698382,60343.0,60329.0,0.55633272]
[1724950298485,0.082847,60331.0,60329.0,0.083729]
[1724950298694,0.25410124,60330.0,60329.0,0.082849]
[1724950298993,0.17125324,60330.0,60329.0,0.082849]
[1724950300193,0.1307,60330.0,60329.0,0.082849]
[1724950300498,0.1267,60330.0,60329.0,0.082849]
[1724950300994,0.1347,60330.0,60329.0,0.083849]
[1724950302985,0.008,60330.0,60329.0,0.083849]
[1724950303194,0.065,60342.0,60341.0,0.082833]
[1724950303495,0.065,60342.0,60341.0,0.443633]
[1724950303496,0.1316,60342.0,60341.0,0.443633]
[1724950304592,0.1456,60342.0,60341.0,0.443633]
[1724950306300,0.228432,60342.0,60341.0,0.443633]
[1724950307117,0.228432,60342.0,60341.0,0.082833]
[1724950307401,0.228432,60342.0,60341.0,0.443633]
[1724950307790,0.1456,60342.0,60341.0,0.443633]
[1724950314299,0.0806,60342.0,60341.0,0.526466]
[1724950314505,0.014,60342.0,60341.0,1.106459]
[1724950314805,0.319311,60357.0,60356.0,0.082812]
[1724950314995,0.319311,60357.0,60346.0,0.443626]
[1724950314996,0.082825,60347.0,60346.0,0.443626]
[1724950315200,0.082834,60340.0,60339.0,0.09679856]
[1724950315505,0.082834,60340.0,60339.0,0.082835]
[1724950315703,0.082839,60338.0,60337.0,0.082838]
[1724950316099,0.082839,60338.0,60334.0,0.3608]
[1724950316100,0.082841,60335.0,60334.0,0.443642]
[1724950316409,0.082841,60335.0,60334.0,0.082842]
[1724950316704,0.082843,60334.0,60333.0,0.00024847]
[1724950317100,0.081843,60334.0,60333.0,0.00024847]
[1724950317701,0.080843,60334.0,60333.0,0.00024847]
[1724950318196,0.080843,60334.0,60333.0,0.00124847]
[1724950320395,1.47157212,60334.0,60312.0,0.04961105]
[1724950320595,1.47157212,60334.0,60310.0,0.55633272]
[1724950320596,0.082874,60311.0,60310.0,0.3608]
[1724950320896,0.3608,60312.0,60303.0,0.13249605]
[1724950321199,0.082879,60308.0,60298.0,0.3608]
[1724950321402,0.00024871,60309.0,60298.0,0.3608]
[1724950321600,0.082884,60304.0,60298.0,0.3608]
[1724950321907,0.3608,60306.0,60297.0,0.00024871]
[1724950322203,0.082889,60301.0,60297.0,0.00024871]
[1724950322406,0.00024871,60309.0,60304.0,0.082884]
[1724950322615,0.00024871,60309.0,60303.0,0.29]
[1724950323112,0.00024871,60309.0,60308.0,0.082878]
[1724950324016,0.01024871,60309.0,60308.0,0.082878]
[1724950324697,0.01424871,60309.0,60308.0,0.082878]
[1724950325494,0.2345,60320.0,60317.0,0.082865]
[1724950325697,0.2345,60320.0,60319.0,0.082863]
[1724950325899,0.24840974,60320.0,60319.0,0.082863]
[1724950326304,0.17120974,60320.0,60319.0,0.082863]
[1724950326702,0.1713,60320.0,60319.0,0.082863]
[1724950327008,0.1713,60320.0,60319.0,0.443663]
[1724950327704,0.1713,60320.0,60314.0,0.3608]
[1724950327705,0.082869,60315.0,60314.0,0.3608]
[1724950327911,0.08287,60314.0,60313.0,0.00024871]
[1724950329500,0.09666467,60314.0,60313.0,0.00024871]
[1724950329698,0.67693467,60314.0,60313.0,0.00024871]
[1724950329908,1.40119467,60314.0,60289.0,0.3608]
[1724950330113,0.6508,60296.0,60283.0,0.0039]
[1724950330319,0.082899,60293.0,60275.0,0.49333405]
[1724950330500,0.082907,60287.0,60279.0,0.01392345]
[1724950330813,0.082904,60289.0,60286.0,0.082908]
[1724950331904,0.00024871,60291.0,60287.0,0.082907]
[1724950332204,0.08315071,60291.0,60287.0,0.082907]
[1724950332998,0.082903,60290.0,60287.0,0.082907]
[1724950333803,0.082907,60287.0,60283.0,0.082912]
[1724950334202,0.00024871,60291.0,60279.0,0.01392345]
[1724950334406,0.082908,60287.0,60282.0,0.443714]
[1724950334907,0.082909,60286.0,60282.0,0.443714]
[1724950335210,0.001,60289.0,60282.0,0.3608]
[1724950335405,0.001,60289.0,60279.0,0.082918]
[1724950335406,0.3608,60285.0,60279.0,0.082918]
[1724950335603,0.082914,60283.0,60279.0,0.082918]
[1724950335801,0.082914,60283.0,60282.0,0.004]
[1724950335999,0.0137036,60291.0,60282.0,0.004]
[1724950336209,0.082909,60286.0,60283.0,0.082912]
[1724950336410,0.08291,60285.0,60283.0,0.082912]
[1724950337815,0.08291,60285.0,60278.0,0.00024871]
[1724950338009,0.082918,60279.0,60278.0,0.00024871]
[1724950338320,0.082918,60279.0,60278.0,0.08316771]
[1724950338713,0.080918,60279.0,60278.0,0.08316771]
[1724950339016,0.080918,60279.0,60278.0,0.00024871]
[1724950339421,1.178598,60279.0,60270.0,0.035]
[1724950339615,0.082943,60261.0,60260.0,0.3608]
[1724950339915,0.443729,60271.0,60255.0,0.0039]
[1724950339916,0.3608,60266.0,60256.0,0.00810218]
[1724950340126,0.082935,60267.0,60256.0,0.00810218]
[1724950340127,0.082942,60262.0,60260.0,0.082943]
[1724950340420,0.0922,60265.0,60256.0,0.3608]
[1724950340718,0.0922,60265.0,60259.0,0.082945]
[1724950340921,0.082944,60261.0,60259.0,0.082945]
[1724950341106,0.0922,60265.0,60255.0,0.36104893]
[1724950341311,0.082939,60264.0,60255.0,0.36104893]
[1724950341509,0.0922,60265.0,60261.0,0.082943]
[1724950341812,0.0922,60265.0,60262.0,0.082941]
[1724950342012,0.08294,60264.0,60263.0,0.08294]
[1724950343907,0.00024893,60267.0,60262.0,0.002]
[1724950344217,0.00024893,60267.0,60266.0,0.443736]
[1724950344720,0.08318393,60267.0,60266.0,0.443736]
[1724950344910,0.08318393,60267.0,60266.0,0.3608]
[1724950345319,0.08518393,60267.0,60266.0,0.3608]
[1724950346017,0.00224893,60267.0,60266.0,0.443736]
[1724950347221,0.00224893,60267.0,60266.0,0.526672]
[1724950347415,0.01372924,60277.0,60266.0,0.3608]
[1724950347617,0.082925,60274.0,60266.0,0.3608]
[1724950347909,0.0922,60279.0,60273.0,0.3608]
[1724950348117,0.0854,60282.0,60279.0,0.082918]
[1724950348318,0.44514893,60287.0,60274.0,0.00024893]
[1724950348519,0.0874,60286.0,60280.0,0.082916]
[1724950348720,0.082915,60281.0,60280.0,0.082916]
[1724950349115,0.082911,60284.0,60283.0,0.082911]
[1724950349323,0.0874,60286.0,60279.0,0.3608]
[1724950349520,0.082917,60280.0,60279.0,0.3608]
[1724950352027,0.081917,60280.0,60279.0,0.443718]
[1724950352620,0.081917,60280.0,60279.0,0.3608]
[1724950352822,0.082924,60275.0,60274.0,0.00024893]
[1724950353027,0.165848,60275.0,60274.0,0.00024893]
[1724950353323,0.082939,60264.0,60263.0,0.44374]
[1724950354526,0.082942,60262.0,60261.0,0.082943]
[1724950355318,0.082937,60266.0,60260.0,0.3608]
[1724950355518,0.082937,60265.0,60264.0,0.082938]
[1724950355921,0.082935,60267.0,60266.0,0.082934]
[1724950356121,0.082935,60267.0,60266.0,0.443734]
[1724950356725,0.082935,60267.0,60266.0,0.3608]
[1724950358125,0.084935,60267.0,60266.0,0.3608]
[1724950359234,0.582735,60267.0,60266.0,0.3608]
[1724950359635,0.084935,60267.0,60266.0,0.3608]
[1724950361935,0.16787,60267.0,60266.0,0.3608]
[1724950362531,1.26567,60267.0,60266.0,0.3608]
[1724950362737,0.084935,60267.0,60266.0,0.3608]
[1724950364343,0.16787,60267.0,60266.0,0.3608]
[1724950364638,0.084935,60267.0,60266.0,0.443736]
[1724950365039,0.084935,60267.0,60266.0,0.3608]
[1724950365434,0.002,60267.0,60266.0,0.443736]
[1724950367145,0.082915,60282.0,60266.0,0.443736]
[1724950367146,0.00124,60275.0,60274.0,0.082925]
[1724950367436,0.00124,60275.0,60274.0,0.443725]
[1724950367640,0.082914,60283.0,60282.0,0.082914]
[1724950367831,0.082914,60283.0,60282.0,0.443714]
[1724950368346,0.08764893,60289.0,60284.0,0.082911]
[1724950368533,0.08764893,60289.0,60282.0,0.3608]
[1724950368534,0.00024893,60289.0,60288.0,0.443706]
[1724950369545,0.09174659,60289.0,60288.0,0.443706]
[1724950370840,0.082921,60277.0,60276.0,0.00024893]
[1724950371342,3.852921,60277.0,60276.0,0.00024893]
[1724950371933,3.77,60277.0,60276.0,0.08317093]
[1724950372340,3.77,60277.0,60276.0,0.08417093]
[1724950372542,3.783,60277.0,60276.0,0.08417093]
[1724950372746,0.013,60277.0,60276.0,0.08417093]
[1724950374047,0.013,60277.0,60276.0,0.00124893]
[1724950374238,0.095921,60277.0,60276.0,0.00124893]
[1724950374746,3.865921,60277.0,60276.0,0.00124893]
[1724950375536,3.783,60277.0,60276.0,0.00124893]
[1724950375852,0.013,60277.0,60276.0,0.08417093]
[1724950378236,0.013,60277.0,60276.0,0.16709293]
[1724950378644,0.013,60277.0,60276.0,0.08417093]
[1724950380646,0.013,60277.0,60276.0,0.16709293]
[1724950381242,0.013,60277.0,60276.0,0.08417093]
[1724950382242,0.013,60277.0,60276.0,0.68417093]
[1724950382442,0.013,60277.0,60276.0,1.26481293]
[1724950382753,0.2723,60290.0,60288.0,0.082906]
[1724950382944,0.1832,60290.0,60288.0,0.443706]
[1724950383245,3.77,60290.0,60288.0,0.443706]
[1724950383453,0.00108,60290.0,60288.0,0.443706]
[1724950383654,0.0842,60296.0,60288.0,0.443706]
[1724950383951,0.0039,60305.0,60299.0,0.082891]
[1724950384247,0.01347943,60306.0,60299.0,0.443691]
[1724950384450,0.01347943,60306.0,60299.0,0.804491]
[1724950384640,0.0884,60309.0,60299.0,0.804491]
[1724950384837,0.00015535,60306.0,60299.0,0.804491]
[1724950385054,0.00015535,60306.0,60299.0,0.7216]
[1724950385444,0.082883,60305.0,60299.0,0.7216]
[1724950385845,0.1614,60300.0,60299.0,0.805491]
[1724950386849,0.1614,60300.0,60299.0,0.7226]
[1724950387241,0.1614,60300.0,60299.0,0.805491]
[1724950389849,0.1614,60300.0,60299.0,0.888382]
[1724950390042,0.1614,60300.0,60299.0,0.805491]
[1724950390742,0.1614,60300.0,60299.0,0.7226]
[1724950391054,0.327178,60300.0,60299.0,0.001]
[1724950391255,0.327178,60300.0,60280.0,0.3608]
[1724950391256,0.082903,60290.0,60280.0,0.3608]
[1724950391462,0.082911,60285.0,60280.0,0.3608]
[1724950391758,3.77,60284.0,60280.0,0.3608]
[1724950391946,3.77,60284.0,60272.0,0.3608]
[1724950391947,3.77,60284.0,60279.0,0.3608]
[1724950392551,3.77,60284.0,60280.0,0.007]
[1724950392954,3.77,60284.0,60279.0,0.3608]
[1724950393151,3.771,60284.0,60279.0,0.3688]
[1724950393750,3.771,60284.0,60280.0,0.082916]
[1724950393950,3.771,60284.0,60279.0,0.3688]
[1724950394349,3.771,60284.0,60283.0,0.082913]
[1724950394556,3.77,60284.0,60283.0,0.082913]
[1724950395065,0.00024893,60288.0,60287.0,0.082907]
[1724950395272,0.0851,60298.0,60291.0,0.082901]
[1724950395463,0.167992,60298.0,60297.0,0.3608]
[1724950396056,3.937992,60298.0,60297.0,0.3608]
[1724950396258,3.8551,60298.0,60292.0,0.3608]
[1724950396454,3.8551,60298.0,60288.0,0.082905]
[1724950396859,3.8551,60298.0,60287.0,0.36104893]
[1724950396860,3.937993,60298.0,60292.0,0.3608]
[1724950397055,0.0851,60298.0,60292.0,0.3608]
[1724950397267,0.0851,60298.0,60296.0,0.082894]
[1724950397571,0.0951,60298.0,60297.0,0.083893]
[1724950398170,0.0851,60298.0,60297.0,0.082893]
[1724950398365,0.0951,60298.0,60297.0,0.082893]
[1724950398569,0.0951,60298.0,60297.0,0.443693]
[1724950399073,0.01,60298.0,60297.0,0.444693]
[1724950400673,0.092892,60298.0,60297.0,0.3618]
[1724950400881,0.21638143,60298.0,60297.0,0.3618]
[1724950401175,0.13348943,60298.0,60297.0,0.3618]
[1724950401579,0.01,60298.0,60297.0,0.3618]
[1724950401878,0.01,60298.0,60297.0,0.804693]
[1724950402181,0.01,60298.0,60297.0,0.734693]
[1724950402372,0.01,60298.0,60297.0,0.444693]
[1724950404468,0.536584,60298.0,60297.0,0.001]
[1724950404667,1.634104,60298.0,60297.0,0.001]
[1724950404874,0.082906,60288.0,60287.0,0.36104893]
[1724950405475,3.852906,60288.0,60287.0,0.36104893]
[1724950405677,0.082899,60294.0,60287.0,0.36104893]
[1724950405976,0.082899,60294.0,60293.0,0.3608]
[1724950406175,3.852899,60294.0,60293.0,0.3608]
[1724950408078,0.262994,60297.0,60293.0,0.443699]
[1724950408272,0.262994,60297.0,60294.0,0.082897]
[1724950409082,0.262994,60297.0,60296.0,0.082895]
[1724950409083,0.0901,60297.0,60296.0,0.082895]
[1724950409672,0.012,60297.0,60294.0,0.001]
[1724950410588,0.082884,60304.0,60296.0,0.082895]